fUST/lending_fUST_20250216
["ID","MTS","AMOUNT","RATE_DAILY","PERIOD"]
[353185560,1739635837066,-500.0,8.87e-05,2]
[353185561,1739635837076,-500.0,8.87e-05,2]
[353185562,1739635837085,-500.0,8.87e-05,2]
[353185563,1739635837094,-726.02,8.87e-05,2]
[353185564,1739635837104,-500.0,8.87e-05,2]
[353185565,1739635837113,-500.0,8.87e-05,2]
[353185566,1739635837122,-500.0,8.87e-05,2]
[353185567,1739635837131,-500.0,8.87e-05,2]
[353185568,1739635837141,-640.28,8.87e-05,2]
[353185569,1739635837150,-500.0,8.87e-05,2]
[353185570,1739635837160,-699.79,8.87e-05,2]
[353185571,1739635837169,-500.0,8.87e-05,2]
[353185572,1739635837178,-500.0,8.87e-05,2]
[353185573,1739635837187,-560.17,8.87e-05,2]
[353185574,1739635837196,-560.17,8.87e-05,2]
[353185575,1739635837205,-560.17,8.87e-05,2]
[353185576,1739635837215,-560.17,8.87e-05,2]
[353185577,1739635837224,-560.17,8.87e-05,2]
[353185578,1739635837234,-560.17,8.87e-05,2]
[353185579,1739635837245,-560.17,8.87e-05,2]
[353185580,1739635837254,-560.17,8.87e-05,2]
[353185581,1739635837264,-560.17,8.87e-05,2]
[353185582,1739635837273,-560.17,8.87e-05,2]
[353185583,1739635837283,-560.17,8.87e-05,2]
[353185584,1739635837292,-500.0,8.87e-05,2]
[353185585,1739635837302,-2558.45,8.87e-05,2]
[353185586,1739635837311,-500.0,8.87e-05,2]
[353185587,1739635837320,-500.0,8.87e-05,2]
[353185588,1739635837330,-2653.86,8.87e-05,2]
[353185589,1739635837340,-500.0,8.87e-05,2]
[353185590,1739635837349,-500.0,8.87e-05,2]
[353185591,1739635837359,-500.0,8.87e-05,2]
[353185592,1739635837368,-500.0,8.87e-05,2]
[353185593,1739635837377,-500.0,8.87e-05,2]
[353185595,1739635837387,-500.0,8.87e-05,2]
[353185596,1739635837397,-500.0,8.87e-05,2]
[353185597,1739635837408,-500.0,8.87e-05,2]
[353185599,1739635837417,-500.0,8.87e-05,2]
[353185600,1739635837427,-500.0,8.87e-05,2]
[353185601,1739635837436,-500.0,8.87e-05,2]
[353185602,1739635837446,-500.0,8.87e-05,2]
[353185603,1739635837456,-500.0,8.87e-05,2]
[353185604,1739635837465,-500.0,8.87e-05,2]
[353185606,1739635837475,-500.0,8.87e-05,2]
[353185608,1739635837485,-664.52,8.87e-05,2]
[353185610,1739635837495,-664.52,8.87e-05,2]
[353185611,1739635837504,-664.52,8.87e-05,2]
[353185612,1739635837514,-664.52,8.87e-05,2]
[353185613,1739635837524,-664.52,8.87e-05,2]
[353185615,1739635837533,-664.52,8.87e-05,2]
[353185617,1739635837543,-664.52,8.87e-05,2]
[353185619,1739635837553,-664.52,8.87e-05,2]
[353185621,1739635837562,-664.52,8.87e-05,2]
[353185623,1739635837572,-664.52,8.87e-05,2]
[353185626,1739635837582,-664.52,8.87e-05,2]
[353185628,1739635837591,-2251.82,8.87e-05,2]
[353185629,1739635837601,-500.0,8.87e-05,2]
[353185632,1739635837611,-557.11,8.87e-05,2]
[353185633,1739635837621,-500.0,8.87e-05,2]
[353185636,1739635837631,-1163.1,8.87e-05,2]
[353185637,1739635837640,-500.0,8.87e-05,2]
[353185640,1739635837650,-500.0,8.87e-05,2]
[353185641,1739635837659,-802.69,8.87e-05,2]
[353185644,1739635837672,-500.0,8.87e-05,2]
[353185652,1739635837759,-538.69,8.87e-05,2]
[353185655,1739635837770,-1322.0,8.87e-05,2]
[353185657,1739635837780,-1322.0,8.87e-05,2]
[353185659,1739635837789,-1322.0,8.87e-05,2]
[353185661,1739635837800,-1322.0,8.87e-05,2]
[353185662,1739635837810,-1322.0,8.87e-05,2]
[353185664,1739635837820,-1322.0,8.87e-05,2]
[353185667,1739635837830,-1322.0,8.87e-05,2]
[353185669,1739635837840,-1322.0,8.87e-05,2]
[353185670,1739635837849,-500.0,8.87e-05,2]
[353185671,1739635837859,-500.0,8.87e-05,2]
[353185672,1739635837868,-500.0,8.87e-05,2]
[353185673,1739635837878,-500.0,8.87e-05,2]
[353185674,1739635837887,-500.0,8.87e-05,2]
[353185675,1739635837897,-500.0,8.87e-05,2]
[353185676,1739635837906,-500.0,8.87e-05,2]
[353185677,1739635837915,-500.0,8.87e-05,2]
[353185678,1739635837924,-697.71,8.87e-05,2]
[353185679,1739635837934,-500.0,8.87e-05,2]
[353185680,1739635837943,-500.0,8.87e-05,2]
[353185681,1739635837953,-500.0,8.87e-05,2]
[353185682,1739635837962,-1272.9,8.87e-05,2]
[353185683,1739635837971,-500.0,8.87e-05,2]
[353185684,1739635837981,-500.0,8.87e-05,2]
[353185685,1739635837991,-500.0,8.871e-05,2]
[353185686,1739635838001,-500.32896413,8.871e-05,2]
[353185687,1739635838010,-500.0,8.871e-05,2]
[353185688,1739635838019,-502.87801945,8.871e-05,2]
[353185689,1739635838028,-569.61786959,8.871e-05,2]
[353185690,1739635838038,-500.67038063,8.871e-05,2]
[353185691,1739635838048,-500.0,8.871e-05,2]
[353185693,1739635838058,-500.0,8.871e-05,2]
[353185695,1739635838068,-501.21557563,8.871e-05,2]
[353185697,1739635838078,-500.75918884,8.871e-05,2]
[353185698,1739635838087,-500.0,8.871e-05,2]
[353185699,1739635838097,-501.91820564,8.871e-05,2]
[353185701,1739635838106,-500.0,8.871e-05,2]
[353185703,1739635838116,-500.0,8.871e-05,2]
[353185705,1739635838125,-500.0,8.871e-05,2]
[353185707,1739635838134,-500.0,8.871e-05,2]
[353185709,1739635838144,-500.0,8.871e-05,2]
[353185711,1739635838154,-501.23432637,8.871e-05,2]
[353185713,1739635838163,-338.75652993,8.871e-05,2]
[353185715,1739635838173,-500.0,8.871e-05,2]
[353185717,1739635838182,-500.0,8.871e-05,2]
[353185719,1739635838191,-500.0,8.871e-05,2]
[353185721,1739635838201,-745.87,8.871e-05,2]
[353185723,1739635838211,-500.0,8.871e-05,2]
[353185725,1739635838220,-500.0,8.871e-05,2]
[353185727,1739635838230,-322.16508305,8.871e-05,2]
[353185729,1739635838242,-150.35333004,8.871e-05,2]
[353185731,1739635838255,-189.26058832,8.871e-05,2]
[353185734,1739635838277,-500.0,8.871e-05,2]
[353185736,1739635838295,-500.0,8.871e-05,2]
[353185739,1739635838317,-500.0,8.871e-05,2]
[353185742,1739635838343,-500.0,8.871e-05,2]
[353185745,1739635838363,-500.0,8.871e-05,2]
[353185748,1739635838383,-500.9951845,8.871e-05,2]
[353185751,1739635838399,-558.3,8.871e-05,2]
[353185754,1739635838417,-507.44960221,8.871e-05,2]
[353185757,1739635838436,-500.0,8.871e-05,2]
[353185760,1739635838458,-500.0,8.871e-05,2]
[353185763,1739635838475,-500.0,8.871e-05,2]
[353185766,1739635838492,-526.66,8.871e-05,2]
[353185768,1739635838509,-500.0,8.871e-05,2]
[353185771,1739635838525,-500.0,8.871e-05,2]
[353185774,1739635838539,-505.01524753,8.871e-05,2]
[353185776,1739635838557,-500.0,8.871e-05,2]
[353185779,1739635838575,-501.62433007,8.871e-05,2]
[353185782,1739635838590,-500.0,8.871e-05,2]
[353185784,1739635838605,-500.0,8.871e-05,2]
[353185787,1739635838621,-500.0,8.871e-05,2]
[353185789,1739635838636,-500.0,8.871e-05,2]
[353185792,1739635838651,-500.0,8.871e-05,2]
[353185795,1739635838670,-501.03692149,8.871e-05,2]
[353185797,1739635838685,-500.0,8.871e-05,2]
[353185800,1739635838701,-500.0,8.871e-05,2]
[353185802,1739635838717,-500.0,8.871e-05,2]
[353185805,1739635838732,-500.0,8.871e-05,2]
[353185807,1739635838749,-500.0,8.871e-05,2]
[353185810,1739635838765,-500.0,8.871e-05,2]
[353185812,1739635838781,-500.0,8.871e-05,2]
[353185815,1739635838796,-500.0,8.871e-05,2]
[353185818,1739635838811,-500.0,8.871e-05,2]
[353185820,1739635838827,-500.0,8.871e-05,2]
[353185823,1739635838842,-500.0,8.871e-05,2]
[353185825,1739635838856,-500.0,8.871e-05,2]
[353185828,1739635838872,-502.44097035,8.871e-05,2]
[353185831,1739635838887,-292.97817088,8.871e-05,2]
[353185834,1739635838903,-500.0,8.871e-05,2]
[353185836,1739635838919,-500.0,8.871e-05,2]
[353185839,1739635838934,-500.0,8.871e-05,2]
[353185842,1739635838949,-315.37293992,8.871e-05,2]
[353185843,1739635838965,-500.0,8.871e-05,2]
[353185845,1739635838980,-500.0,8.871e-05,2]
[353185848,1739635838995,-500.0,8.871e-05,2]
[353185851,1739635839011,-500.0,8.871e-05,2]
[353185853,1739635839027,-500.0,8.871e-05,2]
[353185856,1739635839042,-500.0,8.871e-05,2]
[353185859,1739635839057,-500.0,8.871e-05,2]
[353185861,1739635839073,-500.0,8.871e-05,2]
[353185863,1739635839083,-1352.31,8.871e-05,2]
[353185879,1739635839223,-500.0,8.871e-05,2]
[353185882,1739635839247,-500.0,8.871e-05,2]
[353185884,1739635839256,-500.0,8.871e-05,2]
[353185886,1739635839267,-500.0,8.871e-05,2]
[353185889,1739635839279,-518.79874112,8.871e-05,2]
[353185890,1739635839288,-524.29,8.871e-05,2]
[353185892,1739635839297,-500.0,8.871e-05,2]
[353185895,1739635839307,-500.0,8.871e-05,2]
[353185897,1739635839316,-500.0,8.871e-05,2]
[353185899,1739635839326,-500.0,8.871e-05,2]
[353185901,1739635839336,-500.0,8.871e-05,2]
[353185903,1739635839345,-500.0,8.871e-05,2]
[353185905,1739635839355,-500.0,8.871e-05,2]
[353185907,1739635839365,-500.0,8.871e-05,2]
[353185909,1739635839375,-500.63832437,8.871e-05,2]
[353185911,1739635839384,-500.0,8.871e-05,2]
[353185913,1739635839394,-500.0,8.871e-05,2]
[353185915,1739635839403,-500.0,8.871e-05,2]
[353185917,1739635839413,-500.0,8.871e-05,2]
[353185919,1739635839423,-500.0,8.871e-05,2]
[353185921,1739635839432,-500.0,8.871e-05,2]
[353185923,1739635839442,-355.18884691,8.871e-05,2]
[353185926,1739635839452,-173.45943049,8.871e-05,2]
[353185928,1739635839461,-500.0,8.871e-05,2]
[353185930,1739635839471,-500.0,8.871e-05,2]
[353185932,1739635839480,-500.0,8.871e-05,2]
[353185934,1739635839490,-500.0,8.871e-05,2]
[353185936,1739635839499,-500.0,8.871e-05,2]
[353185938,1739635839510,-500.0,8.871e-05,2]
[353185940,1739635839519,-500.93745723,8.871e-05,2]
[353185942,1739635839529,-500.0,8.871e-05,2]
[353185944,1739635839539,-500.0,8.871e-05,2]
[353185946,1739635839548,-500.0,8.871e-05,2]
[353185948,1739635839558,-500.0,8.871e-05,2]
[353185950,1739635839567,-500.0,8.871e-05,2]
[353185952,1739635839577,-505.21413874,8.871e-05,2]
[353185954,1739635839586,-500.0,8.871e-05,2]
[353185956,1739635839596,-500.0,8.871e-05,2]
[353185958,1739635839606,-500.0,8.871e-05,2]
[353185961,1739635839616,-500.0,8.871e-05,2]
[353185963,1739635839626,-500.0,8.871e-05,2]
[353185964,1739635839635,-500.0,8.871e-05,2]
[353185966,1739635839645,-500.0,8.871e-05,2]
[353185968,1739635839654,-501.51365461,8.871e-05,2]
[353185971,1739635839665,-502.0561243,8.871e-05,2]
[353185973,1739635839680,-532.79512166,8.871e-05,2]
[353185975,1739635839690,-500.0,8.871e-05,2]
[353185977,1739635839700,-500.0,8.871e-05,2]
[353185979,1739635839711,-500.0,8.871e-05,2]
[353185981,1739635839720,-500.0,8.871e-05,2]
[353185983,1739635839730,-500.0,8.871e-05,2]
[353185984,1739635839739,-500.0,8.871e-05,2]
[353185987,1739635839751,-500.0,8.871e-05,2]
[353185989,1739635839761,-500.0,8.871e-05,2]
[353185990,1739635839770,-750.37,8.871e-05,2]
[353185993,1739635839780,-455.62451538,8.871e-05,2]
[353185995,1739635839790,-500.0,8.871e-05,2]
[353185996,1739635839799,-500.0,8.871e-05,2]
[353185999,1739635839809,-500.0,8.871e-05,2]
[353186001,1739635839819,-508.88611111,8.871e-05,2]
[353186003,1739635839829,-500.0,8.871e-05,2]
[353186005,1739635839839,-500.0,8.871e-05,2]
[353186007,1739635839848,-501.04584686,8.871e-05,2]
[353186009,1739635839858,-500.0,8.871e-05,2]
[353186011,1739635839868,-374.55408124,8.871e-05,2]
[353186013,1739635839877,-506.67786258,8.871e-05,2]
[353186015,1739635839886,-501.49768231,8.871e-05,2]
[353186017,1739635839896,-500.0,8.871e-05,2]
[353186019,1739635839905,-500.0,8.871e-05,2]
[353186021,1739635839915,-500.0,8.871e-05,2]
[353186023,1739635839924,-500.0,8.871e-05,2]
[353186025,1739635839933,-500.0,8.871e-05,2]
[353186027,1739635839943,-500.0,8.871e-05,2]
[353186029,1739635839953,-541.46501193,8.871e-05,2]
[353186031,1739635839962,-500.0,8.871e-05,2]
[353186033,1739635839972,-504.35422544,8.871e-05,2]
[353186035,1739635839982,-500.0,8.871e-05,2]
[353186037,1739635839992,-500.0,8.871e-05,2]
[353186039,1739635840001,-500.0,8.871e-05,2]
[353186041,1739635840010,-500.0,8.871e-05,2]
[353186043,1739635840019,-500.0,8.871e-05,2]
[353186045,1739635840028,-500.0,8.871e-05,2]
[353186047,1739635840039,-500.0,8.871e-05,2]
[353186049,1739635840048,-501.46590943,8.871e-05,2]
[353186051,1739635840058,-500.0,8.871e-05,2]
[353186053,1739635840069,-500.0,8.871e-05,2]
[353186055,1739635840078,-500.0,8.871e-05,2]
[353186057,1739635840088,-506.41367764,8.871e-05,2]
[353186059,1739635840097,-500.0,8.871e-05,2]
[353186061,1739635840112,-500.0,8.871e-05,2]
[353186063,1739635840132,-539.38102497,8.871e-05,2]
[353186065,1739635840142,-500.0,8.871e-05,2]
[353186067,1739635840152,-500.0,8.871e-05,2]
[353186069,1739635840163,-212.26132951,8.871e-05,2]
[353186071,1739635840172,-560.17,8.871e-05,2]
[353186073,1739635840182,-560.17,8.871e-05,2]
[353186075,1739635840191,-560.17,8.871e-05,2]
[353186077,1739635840201,-560.17,8.871e-05,2]
[353186079,1739635840211,-560.17,8.871e-05,2]
[353186081,1739635840221,-560.17,8.871e-05,2]
[353186083,1739635840230,-504.68452765,8.871e-05,2]
[353186085,1739635840240,-560.33820576,8.871e-05,2]
[353186087,1739635840256,-497.29089269,8.871e-05,2]
[353186090,1739635840267,-500.0,8.871e-05,2]
[353186091,1739635840277,-500.0,8.871e-05,2]
[353186094,1739635840287,-171.69741643,8.871e-05,2]
[353186096,1739635840296,-500.0,8.871e-05,2]
[353186097,1739635840306,-1003.13,8.871e-05,2]
[353186100,1739635840316,-500.0,8.871e-05,2]
[353186102,1739635840325,-500.0,8.871e-05,2]
[353186104,1739635840335,-500.0,8.871e-05,2]
[353186106,1739635840345,-500.0,8.871e-05,2]
[353186107,1739635840354,-500.0,8.871e-05,2]
[353186109,1739635840364,-500.0,8.871e-05,2]
[353186111,1739635840373,-500.0,8.871e-05,2]
[353186113,1739635840383,-500.0,8.871e-05,2]
[353186116,1739635840392,-500.0,8.871e-05,2]
[353186118,1739635840402,-664.52,8.871e-05,2]
[353186120,1739635840411,-664.52,8.871e-05,2]
[353186122,1739635840421,-664.52,8.871e-05,2]
[353186124,1739635840430,-664.52,8.871e-05,2]
[353186126,1739635840440,-664.52,8.871e-05,2]
[353186128,1739635840449,-664.52,8.871e-05,2]
[353186130,1739635840459,-664.6764948,8.871e-05,2]
[353186132,1739635840469,-1322.0,8.871e-05,2]
[353186134,1739635840479,-1322.0,8.871e-05,2]
[353186136,1739635840489,-1322.0,8.871e-05,2]
[353186138,1739635840499,-1322.0,8.871e-05,2]
[353186140,1739635840509,-1322.13004014,8.871e-05,2]
[353186142,1739635840518,-500.72763492,8.872e-05,2]
[353186144,1739635840528,-501.13886032,8.872e-05,2]
[353186146,1739635840538,-500.41298333,8.872e-05,2]
[353186148,1739635840547,-500.0,8.872e-05,2]
[353186150,1739635840557,-505.03685252,8.872e-05,2]
[353186152,1739635840567,-500.0,8.872e-05,2]
[353186154,1739635840576,-500.0,8.872e-05,2]
[353186156,1739635840586,-500.96588256,8.872e-05,2]
[353186158,1739635840595,-500.0,8.872e-05,2]
[353186160,1739635840605,-500.0,8.872e-05,2]
[353186162,1739635840614,-500.0,8.872e-05,2]
[353186164,1739635840623,-268.40092857,8.872e-05,2]
[353186166,1739635840633,-500.0,8.872e-05,2]
[353186168,1739635840643,-500.0,8.872e-05,2]
[353186170,1739635840653,-500.94457899,8.872e-05,2]
[353186172,1739635840662,-500.0,8.872e-05,2]
[353186174,1739635840675,-500.0,8.872e-05,2]
[353186176,1739635840685,-500.0,8.872e-05,2]
[353186178,1739635840695,-500.0,8.872e-05,2]
[353186180,1739635840705,-500.0,8.872e-05,2]
[353186182,1739635840714,-517.85986524,8.872e-05,2]
[353186183,1739635840723,-500.0,8.872e-05,2]
[353186184,1739635840733,-500.0,8.872e-05,2]
[353186185,1739635840743,-500.90593018,8.872e-05,2]
[353186186,1739635840753,-500.0,8.872e-05,2]
[353186187,1739635840763,-502.38674782,8.872e-05,2]
[353186188,1739635840772,-500.0,8.872e-05,2]
[353186189,1739635840781,-500.0,8.872e-05,2]
[353186190,1739635840790,-501.32034741,8.872e-05,2]
[353186191,1739635840801,-500.0,8.872e-05,2]
[353186192,1739635840811,-500.0,8.872e-05,2]
[353186193,1739635840820,-500.76729494,8.872e-05,2]
[353186194,1739635840830,-502.51266917,8.872e-05,2]
[353186196,1739635840839,-500.0,8.872e-05,2]
[353186198,1739635840935,-500.0,8.872e-05,2]
[353186200,1739635840945,-500.0,8.872e-05,2]
[353186202,1739635840954,-500.0,8.872e-05,2]
[353186204,1739635840964,-500.0,8.872e-05,2]
[353186206,1739635840973,-500.37740121,8.872e-05,2]
[353186209,1739635840982,-500.0,8.872e-05,2]
[353186210,1739635840992,-500.0,8.872e-05,2]
[353186212,1739635841001,-500.0,8.872e-05,2]
[353186214,1739635841010,-500.0,8.872e-05,2]
[353186215,1739635841020,-500.0,8.872e-05,2]
[353186216,1739635841029,-500.0,8.872e-05,2]
[353186218,1739635841038,-500.0,8.872e-05,2]
[353186220,1739635841047,-500.0,8.872e-05,2]
[353186222,1739635841058,-243.21384006,8.872e-05,2]
[353186224,1739635841067,-500.0,8.872e-05,2]
[353186226,1739635841076,-500.0,8.872e-05,2]
[353186228,1739635841086,-506.16057686,8.872e-05,2]
[353186230,1739635841095,-500.0,8.872e-05,2]
[353186232,1739635841104,-643.34,8.872e-05,2]
[353186234,1739635841114,-503.52097616,8.872e-05,2]
[353186235,1739635841123,-500.0,8.872e-05,2]
[353186237,1739635841133,-2228.95,8.872e-05,2]
[353186239,1739635841142,-808.89,8.872e-05,2]
[353186241,1739635841151,-500.0,8.872e-05,2]
[353186243,1739635841160,-122195.25163854,8.873e-05,2]
[353186268,1739635841387,-2000.0,8.873e-05,2]
[353186335,1739635842165,-500.0,8.869e-05,2]
[353186337,1739635842175,-362.66981828,8.873e-05,2]
[353186339,1739635842186,-5376.97072288,8.873e-05,2]
[353186341,1739635842198,-2528.30363825,8.873e-05,2]
[353186343,1739635842210,-853.65504678,8.873e-05,2]
[353186353,1739635842290,-7366.45566224,8.873e-05,2]
[353186355,1739635842302,-4654.07997399,8.873e-05,2]
[353186357,1739635842313,-1722.3396068,8.873e-05,2]
[353186359,1739635842325,-1497.359927,8.873e-05,2]
[353186370,1739635842417,-500.0,8.869e-05,2]
[353186372,1739635842426,-1726.71016641,8.873e-05,2]
[353186376,1739635842439,-453.40201646,8.873e-05,2]
[353186379,1739635842451,-656.55774215,8.873e-05,2]
[353186383,1739635842463,-892.5796797,8.873e-05,2]
[353186453,1739635842949,-500.0,8.869e-05,2]
[353186455,1739635842959,-5454.64293143,8.873e-05,2]
[353186457,1739635842971,-657.04744447,8.873e-05,2]
[353186722,1739635846016,-500.0,8.868e-05,2]
[353186723,1739635846026,-463.06,8.868e-05,2]
[353186724,1739635846038,-36.94,8.868e-05,2]
[353186726,1739635846048,-500.0,8.869e-05,2]
[353186727,1739635846057,-500.0,8.869e-05,2]
[353186729,1739635846068,-625.81,8.873e-05,2]
[353186732,1739635846079,-8791.72284094,8.873e-05,2]
[353187052,1739635850237,1000.0,8.789e-05,2]
[353187055,1739635852448,408.5509248,8.843e-05,2]
[353187065,1739635896242,1000.0,8.703e-05,2]
[353187066,1739635904830,418.32651745,8.767e-05,2]
[353187068,1739635927083,210.06829132,8.767e-05,2]
[353187069,1739635956954,826.34680787,8.629e-05,2]
[353187070,1739635998054,39458.278334,8.219e-05,2]
[353187071,1739636016370,1000.0,8.806e-05,2]
[353187072,1739636016426,1000.0,8.64e-05,2]
[353187073,1739636059752,500.0,7.9e-05,2]
[353187074,1739636060523,500.0,7.9e-05,2]
[353187075,1739636061322,500.0,7.9e-05,2]
[353187076,1739636062169,500.0,7.9e-05,2]
[353187077,1739636076243,1000.0,8.665e-05,2]
[353187078,1739636076378,1000.0,8.739e-05,2]
[353187079,1739636076698,1000.0,8.769e-05,2]
[353187080,1739636127344,500.0,7.9e-05,2]
[353187081,1739636128126,500.0,7.9e-05,2]
[353187082,1739636129110,500.0,7.9e-05,2]
[353187083,1739636130131,500.0,7.9e-05,2]
[353187084,1739636136349,1000.0,8.684e-05,2]
[353187085,1739636136412,1000.0,8.656e-05,2]
[353187086,1739636136483,1000.0,8.769e-05,2]
[353187087,1739636163312,2375.2502462,7.871e-05,2]
[353187088,1739636195312,500.0,7.9e-05,2]
[353187089,1739636195952,500.0,7.9e-05,2]
[353187090,1739636196741,500.0,7.9e-05,2]
[353187091,1739636197532,500.0,7.9e-05,2]
[353187092,1739636198347,500.0,7.9e-05,2]
[353187093,1739636199147,500.0,7.9e-05,2]
[353187094,1739636201156,500.0,7.9e-05,2]
[353187095,1739636202103,500.0,7.9e-05,2]
[353187096,1739636202813,500.0,7.9e-05,2]
[353187097,1739636203539,500.0,7.9e-05,2]
[353187098,1739636204331,500.0,7.9e-05,2]
[353187099,1739636205115,500.0,7.9e-05,2]
[353187100,1739636205907,500.0,7.9e-05,2]
[353187101,1739636206707,500.0,7.9e-05,2]
[353187102,1739636207494,500.0,7.9e-05,2]
[353187103,1739636208277,500.0,7.9e-05,2]
[353187104,1739636209174,500.0,7.9e-05,2]
[353187105,1739636209935,500.0,7.9e-05,2]
[353187106,1739636210728,500.0,7.9e-05,2]
[353187107,1739636211668,500.0,7.9e-05,2]
[353187108,1739636212334,500.0,7.9e-05,2]
[353187109,1739636213121,500.0,7.9e-05,2]
[353187110,1739636213910,500.0,7.9e-05,2]
[353187111,1739636214745,237.34,7.9e-05,2]
[353187112,1739636280596,500.0,7.9e-05,2]
[353187113,1739636281384,500.0,7.9e-05,2]
[353187114,1739636282192,500.0,7.9e-05,2]
[353187115,1739636316231,1000.0,8.839e-05,2]
[353187116,1739636415502,24900.0,7.868e-05,2]
[353187121,1739636559903,250.0,7.868e-05,2]
[353187122,1739636572053,95436.62234429,8.8e-05,2]
[353187170,1739637032462,-300.0,8.863e-05,2]
[353187171,1739637032472,-500.0,8.864e-05,2]
[353187172,1739637032482,-500.0,8.864e-05,2]
[353187173,1739637032491,-500.0,8.864e-05,2]
[353187174,1739637032500,-200.0,8.864e-05,2]
[353187175,1739637032568,-1310.51,8.864e-05,2]
[353187177,1739637032578,-500.96715317,8.864e-05,2]
[353187178,1739637032587,-500.0,8.864e-05,2]
[353187179,1739637032597,-3586.99,8.864e-05,2]
[353187180,1739637032606,-500.0,8.864e-05,2]
[353187181,1739637032616,-500.0,8.864e-05,2]
[353187182,1739637032625,-500.0,8.864e-05,2]
[353187183,1739637032634,-500.0,8.864e-05,2]
[353187184,1739637032644,-615.97,8.864e-05,2]
[353187185,1739637032653,-500.0,8.864e-05,2]
[353187186,1739637032662,-2839.4,8.864e-05,2]
[353187187,1739637032672,-1704.69,8.864e-05,2]
[353187188,1739637032682,-8028.29,8.864e-05,2]
[353187189,1739637032691,-2451.95,8.864e-05,2]
[353187190,1739637032700,-647.08,8.864e-05,2]
[353187191,1739637032710,-1392.07,8.864e-05,2]
[353187192,1739637032720,-500.0,8.864e-05,2]
[353187193,1739637032729,-917.85,8.864e-05,2]
[353187194,1739637032739,-500.0,8.864e-05,2]
[353187195,1739637032748,-554.43,8.864e-05,2]
[353187196,1739637032757,-3396.31,8.864e-05,2]
[353187197,1739637032767,-500.0,8.864e-05,2]
[353187198,1739637032777,-500.0,8.864e-05,2]
[353187199,1739637032786,-500.0,8.864e-05,2]
[353187200,1739637032796,-2090.83,8.864e-05,2]
[353187201,1739637032805,-500.0,8.864e-05,2]
[353187202,1739637032815,-926.29,8.864e-05,2]
[353187203,1739637032826,-500.0,8.864e-05,2]
[353187204,1739637032836,-500.0,8.864e-05,2]
[353187205,1739637032847,-500.0,8.864e-05,2]
[353187206,1739637032856,-500.0,8.865e-05,2]
[353187207,1739637032865,-500.0,8.865e-05,2]
[353187208,1739637032875,-1016.58,8.865e-05,2]
[353187209,1739637032885,-500.0,8.865e-05,2]
[353187210,1739637032894,-872.0,8.865e-05,2]
[353187211,1739637032904,-500.0,8.865e-05,2]
[353187212,1739637032914,-858.77,8.865e-05,2]
[353187213,1739637032924,-882.65,8.865e-05,2]
[353187214,1739637032934,-500.0,8.865e-05,2]
[353187215,1739637032944,-500.0,8.865e-05,2]
[353187216,1739637032953,-500.0,8.865e-05,2]
[353187217,1739637032962,-1464.23,8.865e-05,2]
[353187218,1739637032971,-865.06,8.865e-05,2]
[353187219,1739637032980,-554.95128945,8.865e-05,2]
[353187220,1739637032990,-500.0,8.865e-05,2]
[353187221,1739637033000,-500.0,8.865e-05,2]
[353187222,1739637033010,-500.0,8.865e-05,2]
[353187223,1739637033023,-500.0,8.865e-05,2]
[353187224,1739637033034,-500.0,8.865e-05,2]
[353187225,1739637033045,-500.0,8.865e-05,2]
[353187226,1739637033056,-500.0,8.865e-05,2]
[353187227,1739637033067,-890.92,8.865e-05,2]
[353187228,1739637033077,-500.0,8.865e-05,2]
[353187229,1739637033086,-500.0,8.865e-05,2]
[353187230,1739637033099,-1315.86,8.865e-05,2]
[353187231,1739637033109,-500.0,8.865e-05,2]
[353187232,1739637033119,-500.0,8.865e-05,2]
[353187233,1739637033129,-500.0,8.865e-05,2]
[353187234,1739637033139,-237.98451476,8.865e-05,2]
[353187235,1739637033148,-500.0,8.865e-05,2]
[353187236,1739637033158,-500.0,8.865e-05,2]